Workbook

Sheet OVERVIEW
C2: Topic 2 - FRACTIONS
C10: Produced by mathsrevision.com in conjunction with St.Andrew's Orienteering Club (Glasgow)

Sheet Course_Answers
E2: Control Card | H2: COURSE | J2: Fractions Topic 2 - ANSWERS | T2: Total
E3: Question answers | H3: M | J3: 42 | L3: 60 | N3: 56 | P3: 59 | R3: 49 | T3: =SUM(J3,L3,N3,P3,R3) -> 266
E4: Control Letter | K4: W | M4: A | O4: T | Q4: L | S4: M
E5: Question answers | H5: P | J5: 53 | L5: 44 | N5: 46 | P5: 37 | R5: 50 | T5: =SUM(J5,L5,N5,P5,R5) -> 230
E6: Control Letter | K6: V | M6: F | O6: X | Q6: C | S6: P
E7: Question answers | H7: R | J7: 43 | L7: 61 | N7: 62 | P7: 48 | R7: 40 | T7: =SUM(J7,L7,N7,P7,R7) -> 254
E8: Control Letter | K8: N | M8: Z | O8: Y | Q8: U | S8: R
E9: Question answers | H9: S | J9: 54 | L9: 34 | N9: 47 | P9: 38 | R9: 51 | T9: =SUM(J9,L9,N9,P9,R9) -> 224
E10: Control Letter | K10: E | M10: Q | O10: J | Q10: K | S10: S
E11: Question answers | H11: B | J11: 65 | L11: 32 | N11: 63 | P11: 36 | R11: 39 | T11: =SUM(J11,L11,N11,P11,R11) -> 235
E12: Control Letter | K12: G | M12: H | O12: D | Q12: I | S12: B

Sheet Control_Card
B2: Control Card | E2: Course : Fractions Name : | Q2: Total | U2: Control Card | X2: Course : Fractions Name : | AJ2: Total
B3: Questions | E3: =Course_Answers!H3 -> M | U3: Questions | X3: =E3 -> M
B4: Control Letter | U4: Control Letter
B6: Control Card | E6: Course : Fractions Name : | Q6: Total | U6: Control Card | X6: Course : Fractions Name : | AJ6: Total
B7: Questions | E7: =Course_Answers!H5 -> P | U7: Questions | X7: =E7 -> P
B8: Control Letter | U8: Control Letter
B10: Control Card | E10: Course : Fractions Name : | Q10: Total | U10: Control Card | X10: Course : Fractions Name : | AJ10: Total
B11: Questions | E11: =Course_Answers!H7 -> R | U11: Questions | X11: =E11 -> R
B12: Control Letter | U12: Control Letter
B14: Control Card | E14: Course : Fractions Name : | Q14: Total | U14: Control Card | X14: Course : Fractions Name : | AJ14: Total
B15: Questions | E15: =Course_Answers!H9 -> S | U15: Questions | X15: =E15 -> S
B16: Control Letter | U16: Control Letter
B18: Control Card | E18: Course : Fractions Name : | Q18: Total | U18: Control Card | X18: Course : Fractions Name : | AJ18: Total
B19: Questions Answer | E19: =Course_Answers!H11 -> B | U19: Questions Answer | X19: =E19 -> B
B20: Control Letter | U20: Control Letter

Sheet MASTER_Q's_31_65 (hidden)
B2: Maths Orienteering Question Sheet - Integers
B4: Q | C4: ONLY Complete the 5 Questions relevant to your current course | J4: Answer | K4: Answer
B5: Starter | D5: =L5 -> 11 | E5: + | F5: =M5 -> 20 | K5: 31 | L5: =ROUND(RAND()*(100-5)+5,0) -> 11 | M5: =N5-L5 -> 20 | N5: =K5 -> 31
B6: A | D6: =L6 -> -81 | E6: + | F6: =M6 -> 113 | K6: 32 | L6: =ROUND(RAND()*((-40)-(-100))+(-100),0) -> -81 | M6: 113 | N6: 32
B7: B | D7: =L7 -> -99 | E7: - | F7: =-M7 -> -132 | K7: 33 | L7: =ROUND(RAND()*((-10)-(-101))+(-101),0) -> -99 | M7: 132 | N7: 33
B8: C | D8: =L8 -> 28 | E8: - | F8: =-M8 -> -6 | K8: 34 | L8: =ROUND(RAND()*(100-5)+5,0) -> 28 | M8: 6 | N8: 34
B9: D | D9: =L9 -> 66 | E9: + | F9: =M9 -> -31 | K9: 35 | L9: =ROUND(RAND()*(100-5)+5,0) -> 66 | M9: -31 | N9: 35
B10: E | D10: =L10 -> 7 | E10: + | F10: =M10 -> 29 | K10: 36 | L10: =ROUND(RAND()*(100-5)+5,0) -> 7 | M10: 29 | N10: 36
B11: F | D11: =L11 -> -50 | E11: + | F11: =M11 -> 87 | K11: 37 | L11: =ROUND(RAND()*((-40)-(-100))+(-100),0) -> -50 | M11: 87 | N11: 37
B12: G | D12: =L12 -> -70 | E12: + | F12: =M12 -> 104 | K12: 34 | L12: =ROUND(RAND()*((-40)-(-100))+(-100),0) -> -70 | M12: =N12-L12 -> 104 | N12: =K12 -> 34
B13: H | D13: =L13 -> -98 | E13: - | F13: =-M13 -> -137 | K13: 39 | L13: =ROUND(RAND()*((-10)-(-101))+(-101),0) -> -98 | M13: 137 | N13: 39
B14: J | D14: =L14 -> 39 | E14: - | F14: =-M14 -> -2 | K14: 41 | L14: =ROUND(RAND()*(100-5)+5,0) -> 39 | M14: 2 | N14: 41
B15: K | D15: =L15 -> 81 | E15: + | F15: =M15 -> -39 | K15: 42 | L15: =ROUND(RAND()*(100-5)+5,0) -> 81 | M15: -39 | N15: 42
B16: L | D16: =L16 -> 46 | E16: + | F16: =M16 -> -3 | K16: 43 | L16: =ROUND(RAND()*(100-5)+5,0) -> 46 | M16: -3 | N16: 43
B17: M | D17: =L17 -> -46 | E17: + | F17: =M17 -> 90 | K17: 44 | L17: =ROUND(RAND()*((-40)-(-100))+(-100),0) -> -46 | M17: 90 | N17: 44
B18: N | D18: =L18 -> -32 | E18: - | F18: =-M18 -> -77 | K18: 45 | L18: =ROUND(RAND()*((-10)-(-101))+(-101),0) -> -32 | M18: 77 | N18: 45
B19: O | D19: =L19 -> 58 | E19: - | F19: =-M19 -> 12 | K19: 46 | L19: =ROUND(RAND()*(100-5)+5,0) -> 58 | M19: -12 | N19: 46
B20: P | D20: =L20 -> 73 | E20: + | F20: =M20 -> -26 | K20: 47 | L20: =ROUND(RAND()*(100-5)+5,0) -> 73 | M20: -26 | N20: 47
B21: Q | D21: =L21 -> 66 | E21: + | F21: =M21 -> -18 | K21: 48 | L21: =ROUND(RAND()*(100-5)+5,0) -> 66 | M21: -18 | N21: 48
B22: R | D22: =L22 -> -70 | E22: + | F22: =M22 -> 119 | K22: 49 | L22: =ROUND(RAND()*((-40)-(-100))+(-100),0) -> -70 | M22: 119 | N22: 49
B23: S | D23: =L23 -> -23 | E23: - | F23: =-M23 -> -73 | K23: 50 | L23: =ROUND(RAND()*((-10)-(-101))+(-101),0) -> -23 | M23: 73 | N23: 50
B24: T | D24: =L24 -> 46 | E24: - | F24: =-M24 -> -5 | K24: 51 | L24: =ROUND(RAND()*(100-5)+5,0) -> 46 | M24: 5 | N24: 51
B25: U | D25: =L25 -> 72 | E25: + | F25: =M25 -> -20 | K25: 52 | L25: =ROUND(RAND()*(100-5)+5,0) -> 72 | M25: -20 | N25: 52
B26: V | D26: =L26 -> 33 | E26: + | F26: =M26 -> 20 | K26: 53 | L26: =ROUND(RAND()*(100-5)+5,0) -> 33 | M26: 20 | N26: 53
B27: W | D27: =L27 -> -59 | E27: + | F27: =M27 -> 113 | K27: 54 | L27: =ROUND(RAND()*((-40)-(-100))+(-100),0) -> -59 | M27: 113 | N27: 54
B28: X | D28: =L28 -> -19 | E28: - | F28: =-M28 -> -74 | K28: 55 | L28: =ROUND(RAND()*((-10)-(-101))+(-101),0) -> -19 | M28: 74 | N28: 55
B29: Y | D29: =L29 -> 73 | E29: - | F29: =-M29 -> 17 | K29: 56 | L29: =ROUND(RAND()*(100-5)+5,0) -> 73 | M29: -17 | N29: 56
B30: Z | D30: =L30 -> 7 | E30: + | F30: =M30 -> 50 | K30: 57 | L30: =ROUND(RAND()*(100-5)+5,0) -> 7 | M30: 50 | N30: 57
B31: A1 | D31: =L31 -> 69 | E31: + | F31: =M31 -> -11 | K31: 58 | L31: =ROUND(RAND()*(100-5)+5,0) -> 69 | M31: -11 | N31: 58
B32: A2 | D32: =L32 -> -73 | E32: + | F32: =M32 -> 132 | K32: 59 | L32: =ROUND(RAND()*((-40)-(-100))+(-100),0) -> -73 | M32: 132 | N32: 59
B33: A3 | D33: =L33 -> -66 | E33: - | F33: =-M33 -> -126 | K33: 60 | L33: =ROUND(RAND()*((-10)-(-101))+(-101),0) -> -66 | M33: 126 | N33: 60
B34: A4 | D34: =L34 -> 14 | E34: - | F34: =-M34 -> -47 | K34: 61 | L34: =ROUND(RAND()*(100-5)+5,0) -> 14 | M34: 47 | N34: 61
B35: A5 | D35: =L35 -> 59 | E35: + | F35: =M35 -> 3 | K35: 62 | L35: =ROUND(RAND()*(100-5)+5,0) -> 59 | M35: 3 | N35: 62
B36: A6 | D36: =L36 -> -77 | E36: - | F36: =-M36 -> -140 | K36: 63 | L36: =ROUND(RAND()*((-10)-(-101))+(-101),0) -> -77 | M36: 140 | N36: 63
B37: A7 | D37: =L37 -> 95 | E37: - | F37: =-M37 -> 31 | K37: 64 | L37: =ROUND(RAND()*(100-5)+5,0) -> 95 | M37: -31 | N37: 64
B38: A8 | D38: =L38 -> 67 | E38: + | F38: =M38 -> -2 | K38: 65 | L38: =ROUND(RAND()*(100-5)+5,0) -> 67 | M38: -2 | N38: 65

Sheet MASTER_Q's_66_100 (hidden)
B2: Maths Orienteering Question Sheet - Integers
B4: Q | C4: ONLY Complete the 5 Questions relevant to your current course | J4: Answer | K4: Answer
B5: Starter | D5: =L5 -> 43 | E5: + | F5: =M5 -> 23 | K5: 66 | L5: =ROUND(RAND()*(100-5)+5,0) -> 43 | M5: =N5-L5 -> 23 | N5: =K5 -> 66
B6: A | D6: =L6 -> -81 | E6: + | F6: =M6 -> 148 | K6: 67 | L6: =ROUND(RAND()*((-40)-(-100))+(-100),0) -> -81 | M6: 148 | N6: 67
B7: B | D7: =L7 -> -56 | E7: - | F7: =-M7 -> -124 | K7: 68 | L7: =ROUND(RAND()*((-10)-(-101))+(-101),0) -> -56 | M7: 124 | N7: 68
B8: C | D8: =L8 -> 61 | E8: - | F8: =-M8 -> -8 | K8: 69 | L8: =ROUND(RAND()*(100-5)+5,0) -> 61 | M8: 8 | N8: 69
B9: D | D9: =L9 -> 32 | E9: + | F9: =M9 -> 38 | K9: 70 | L9: =ROUND(RAND()*(100-5)+5,0) -> 32 | M9: 38 | N9: 70
B10: E | D10: =L10 -> 10 | E10: + | F10: =M10 -> 61 | K10: 71 | L10: =ROUND(RAND()*(100-5)+5,0) -> 10 | M10: 61 | N10: 71
B11: F | D11: =L11 -> -73 | E11: + | F11: =M11 -> 145 | K11: 72 | L11: =ROUND(RAND()*((-40)-(-100))+(-100),0) -> -73 | M11: 145 | N11: 72
B12: G | D12: =L12 -> -62 | E12: - | F12: =-M12 -> -135 | K12: 73 | L12: =ROUND(RAND()*((-10)-(-101))+(-101),0) -> -62 | M12: =N12-L12 -> 135 | N12: =K12 -> 73
B13: H | D13: =L13 -> -45 | E13: - | F13: =-M13 -> -118 | K13: 73 | L13: =ROUND(RAND()*((-10)-(-101))+(-101),0) -> -45 | M13: 118 | N13: 73
B14: J | D14: =L14 -> 89 | E14: - | F14: =-M14 -> 15 | K14: 74 | L14: =ROUND(RAND()*(100-5)+5,0) -> 89 | M14: -15 | N14: 74
B15: K | D15: =L15 -> 82 | E15: + | F15: =M15 -> -7 | K15: 75 | L15: =ROUND(RAND()*(100-5)+5,0) -> 82 | M15: -7 | N15: 75
B16: L | D16: =L16 -> 63 | E16: + | F16: =M16 -> 13 | K16: 76 | L16: =ROUND(RAND()*(100-5)+5,0) -> 63 | M16: 13 | N16: 76
B17: M | D17: =L17 -> -76 | E17: + | F17: =M17 -> 153 | K17: 77 | L17: =ROUND(RAND()*((-40)-(-100))+(-100),0) -> -76 | M17: 153 | N17: 77
B18: N | D18: =L18 -> -93 | E18: - | F18: =-M18 -> -171 | K18: 78 | L18: =ROUND(RAND()*((-10)-(-101))+(-101),0) -> -93 | M18: 171 | N18: 78
B19: O | D19: =L19 -> 14 | E19: - | F19: =-M19 -> -65 | K19: 79 | L19: =ROUND(RAND()*(100-5)+5,0) -> 14 | M19: 65 | N19: 79
B20: P | D20: =L20 -> 40 | E20: + | F20: =M20 -> 40 | K20: 80 | L20: =ROUND(RAND()*(100-5)+5,0) -> 40 | M20: 40 | N20: 80
B21: Q | D21: =L21 -> 8 | E21: + | F21: =M21 -> 73 | K21: 81 | L21: =ROUND(RAND()*(100-5)+5,0) -> 8 | M21: 73 | N21: 81
B22: R | D22: =L22 -> -93 | E22: + | F22: =M22 -> 175 | K22: 82 | L22: =ROUND(RAND()*((-40)-(-100))+(-100),0) -> -93 | M22: 175 | N22: 82
B23: S | D23: =L23 -> -100 | E23: - | F23: =-M23 -> -183 | K23: 83 | L23: =ROUND(RAND()*((-10)-(-101))+(-101),0) -> -100 | M23: 183 | N23: 83
B24: T | D24: =L24 -> 100 | E24: - | F24: =-M24 -> 16 | K24: 84 | L24: =ROUND(RAND()*(100-5)+5,0) -> 100 | M24: -16 | N24: 84
B25: U | D25: =L25 -> 9 | E25: + | F25: =M25 -> 76 | K25: 85 | L25: =ROUND(RAND()*(100-5)+5,0) -> 9 | M25: 76 | N25: 85
B26: V | D26: =L26 -> 98 | E26: + | F26: =M26 -> -12 | K26: 86 | L26: =ROUND(RAND()*(100-5)+5,0) -> 98 | M26: -12 | N26: 86
B27: W | D27: =L27 -> -66 | E27: + | F27: =M27 -> 153 | K27: 87 | L27: =ROUND(RAND()*((-40)-(-100))+(-100),0) -> -66 | M27: 153 | N27: 87
B28: X | D28: =L28 -> -37 | E28: - | F28: =-M28 -> -125 | K28: 88 | L28: =ROUND(RAND()*((-10)-(-101))+(-101),0) -> -37 | M28: 125 | N28: 88
B29: Y | D29: =L29 -> 32 | E29: - | F29: =-M29 -> -57 | K29: 89 | L29: =ROUND(RAND()*(100-5)+5,0) -> 32 | M29: 57 | N29: 89
B30: Z | D30: =L30 -> 27 | E30: + | F30: =M30 -> 63 | K30: 90 | L30: =ROUND(RAND()*(100-5)+5,0) -> 27 | M30: 63 | N30: 90
B31: A1 | D31: =L31 -> 69 | E31: + | F31: =M31 -> 22 | K31: 91 | L31: =ROUND(RAND()*(100-5)+5,0) -> 69 | M31: 22 | N31: 91
B32: A2 | D32: =L32 -> -87 | E32: + | F32: =M32 -> 179 | K32: 92 | L32: =ROUND(RAND()*((-40)-(-100))+(-100),0) -> -87 | M32: 179 | N32: 92
B33: A3 | D33: =L33 -> -56 | E33: - | F33: =-M33 -> -149 | K33: 93 | L33: =ROUND(RAND()*((-10)-(-101))+(-101),0) -> -56 | M33: 149 | N33: 93
B34: A4 | D34: =L34 -> 81 | E34: - | F34: =-M34 -> -13 | K34: 94 | L34: =ROUND(RAND()*(100-5)+5,0) -> 81 | M34: 13 | N34: 94
B35: A5 | D35: =L35 -> 251 | E35: + | F35: =M35 -> -156 | K35: 95 | L35: =ROUND(RAND()*(300-5)+5,0) -> 251 | M35: -156 | N35: 95
B36: A6 | D36: =L36 -> -97 | E36: - | F36: =-M36 -> -193 | K36: 96 | L36: =ROUND(RAND()*((-10)-(-101))+(-101),0) -> -97 | M36: 193 | N36: 96
B37: A7 | D37: =L37 -> 25 | E37: - | F37: =-M37 -> -72 | K37: 97 | L37: =ROUND(RAND()*(100-5)+5,0) -> 25 | M37: 72 | N37: 97
B38: A8 | D38: =L38 -> 37 | E38: + | F38: =M38 -> 61 | K38: 98 | L38: =ROUND(RAND()*(130-5)+5,0) -> 37 | M38: 61 | N38: 98
B39: A9 | D39: =L39 -> 91 | E39: - | F39: =-M39 -> -8 | K39: 99 | L39: =ROUND(RAND()*(100-5)+5,0) -> 91 | M39: 8 | N39: =K39 -> 99
B40: A10 | D40: =L40 -> 130 | E40: + | F40: =M40 -> -30 | K40: 100 | L40: =ROUND(RAND()*(300-5)+5,0) -> 130 | M40: -30 | N40: 100

Sheet Course_Questions_CW_31_65
B1: Maths Orienteering Question Sheet - Fractions (CW 1 - 5)
B3: Q | C3: ONLY Complete the 5 Questions relevant to your current course | J3: Answer
B4: A | D4: =K5 -> 1 | E4: of | F4: =M5 -> 224 | J4: 56 | K4: =ROUND(RAND()*(50-1)+1,0) -> 37 | L4: =K4+1 -> 38 | M4: =J4 -> 56 | P4: N | R4: =Y5 -> 1 | S4: of | T4: =AA5 -> 427 | X4: 61 | Y4: =ROUND(RAND()*(46-1)+1,0) -> 23 | Z4: =Y4+1 -> 24 | AA4: =X4 -> 61
D5: =L5 -> 4 | K5: =GCD(K4,M4) -> 1 | L5: =IF(K5=1,ROUND(RAND()*(10-3)+3,0),K5+1) -> 4 | M5: =M4*L5/K5 -> 224 | R5: =Z5 -> 7 | Y5: =GCD(Y4,AA4) -> 1 | Z5: =IF(Y5=1,ROUND(RAND()*(10-3)+3,0),Y5+1) -> 7 | AA5: =AA4*Z5/Y5 -> 427
B6: B | D6: =K7 -> 1 | E6: of | F6: =M7 -> 585 | J6: 65 | K6: =ROUND(RAND()*(54-1)+1,0) -> 38 | L6: =K6+1 -> 39 | M6: =J6 -> 65 | P6: O | R6: =Y7 -> 1 | S6: of | T6: =AA7 -> 360 | X6: 45 | Y6: =ROUND(RAND()*(64-1)+1,0) -> 7 | Z6: =Y6+1 -> 8 | AA6: =X6 -> 45
D7: =L7 -> 9 | K7: =GCD(K6,M6) -> 1 | L7: =IF(K7=1,ROUND(RAND()*(10-3)+3,0),K7+1) -> 9 | M7: =M6*L7/K7 -> 585 | R7: =Z7 -> 8 | Y7: =GCD(Y6,AA6) -> 1 | Z7: =IF(Y7=1,ROUND(RAND()*(10-3)+3,0),Y7+1) -> 8 | AA7: =AA6*Z7/Y7 -> 360
B8: C | D8: =K9 -> 2 | E8: of | F8: =M9 -> 75 | J8: 50 | K8: =ROUND(RAND()*(51-1)+1,0) -> 8 | L8: =K8+1 -> 9 | M8: =J8 -> 50 | P8: P | R8: =Y9 -> 1 | S8: of | T8: =AA9 -> 530 | X8: 53 | Y8: =ROUND(RAND()*(39-1)+1,0) -> 29 | Z8: =Y8+1 -> 30 | AA8: =X8 -> 53
D9: =L9 -> 3 | K9: =GCD(K8,M8) -> 2 | L9: =IF(K9=1,ROUND(RAND()*(10-3)+3,0),K9+1) -> 3 | M9: =M8*L9/K9 -> 75 | R9: =Z9 -> 10 | Y9: =GCD(Y8,AA8) -> 1 | Z9: =IF(Y9=1,ROUND(RAND()*(10-3)+3,0),Y9+1) -> 10 | AA9: =AA8*Z9/Y9 -> 530
B10: D | D10: =K11 -> 4 | E10: of | F10: =M11 -> 45 | J10: 36 | K10: =ROUND(RAND()*(42-1)+1,0) -> 20 | L10: =K10+1 -> 21 | M10: =J10 -> 36 | P10: Q | R10: =Y11 -> 1 | S10: of | T10: =AA11 -> 329 | X10: 47 | Y10: =ROUND(RAND()*(38-1)+1,0) -> 38 | Z10: =Y10+1 -> 39 | AA10: =X10 -> 47
D11: =L11 -> 5 | K11: =GCD(K10,M10) -> 4 | L11: =IF(K11=1,ROUND(RAND()*(10-3)+3,0),K11+1) -> 5 | M11: =M10*L11/K11 -> 45 | R11: =Z11 -> 7 | Y11: =GCD(Y10,AA10) -> 1 | Z11: =IF(Y11=1,ROUND(RAND()*(10-3)+3,0),Y11+1) -> 7 | AA11: =AA10*Z11/Y11 -> 329
B12: E | D12: =K13 -> 2 | E12: of | F12: =M13 -> 51 | J12: 34 | K12: =ROUND(RAND()*(56-1)+1,0) -> 36 | L12: =K12+1 -> 37 | M12: =J12 -> 34 | P12: R | R12: =Y13 -> 1 | S12: of | T12: =AA13 -> 172 | X12: 43 | Y12: =ROUND(RAND()*(42-1)+1,0) -> 6 | Z12: =Y12+1 -> 7 | AA12: =X12 -> 43
D13: =L13 -> 3 | K13: =GCD(K12,M12) -> 2 | L13: =IF(K13=1,ROUND(RAND()*(10-3)+3,0),K13+1) -> 3 | M13: =M12*L13/K13 -> 51 | R13: =Z13 -> 4 | Y13: =GCD(Y12,AA12) -> 1 | Z13: =IF(Y13=1,ROUND(RAND()*(10-3)+3,0),Y13+1) -> 4 | AA13: =AA12*Z13/Y13 -> 172
B14: F | D14: =K15 -> 1 | E14: of | F14: =M15 -> 460 | J14: 46 | K14: =ROUND(RAND()*(47-1)+1,0) -> 45 | L14: =K14+1 -> 46 | M14: =J14 -> 46 | P14: S | R14: =Y15 -> 1 | S14: of | T14: =AA15 -> 540 | X14: 54 | Y14: =ROUND(RAND()*(53-1)+1,0) -> 43 | Z14: =Y14+1 -> 44 | AA14: =X14 -> 54
D15: =L15 -> 10 | K15: =GCD(K14,M14) -> 1 | L15: =IF(K15=1,ROUND(RAND()*(10-3)+3,0),K15+1) -> 10 | M15: =M14*L15/K15 -> 460 | R15: =Z15 -> 10 | Y15: =GCD(Y14,AA14) -> 1 | Z15: =IF(Y15=1,ROUND(RAND()*(10-3)+3,0),Y15+1) -> 10 | AA15: =AA14*Z15/Y15 -> 540
B16: G | D16: =K17 -> 2 | E16: of | F16: =M17 -> 48 | J16: 32 | K16: =ROUND(RAND()*(34-1)+1,0) -> 26 | L16: =K16+1 -> 27 | M16: =J16 -> 32 | P16: T | R16: =Y17 -> 1 | S16: of | T16: =AA17 -> 354 | X16: 59 | Y16: =ROUND(RAND()*(60-1)+1,0) -> 12 | Z16: =Y16+1 -> 13 | AA16: =X16 -> 59
D17: =L17 -> 3 | K17: =GCD(K16,M16) -> 2 | L17: =IF(K17=1,ROUND(RAND()*(10-3)+3,0),K17+1) -> 3 | M17: =M16*L17/K17 -> 48 | R17: =Z17 -> 6 | Y17: =GCD(Y16,AA16) -> 1 | Z17: =IF(Y17=1,ROUND(RAND()*(10-3)+3,0),Y17+1) -> 6 | AA17: =AA16*Z17/Y17 -> 354
B18: H | D18: =K19 -> 9 | E18: of | F18: =M19 -> 70 | J18: 63 | K18: =ROUND(RAND()*(36-1)+1,0) -> 9 | L18: =K18+1 -> 10 | M18: =J18 -> 63 | P18: U | R18: =Y19 -> 10 | S18: of | T18: =AA19 -> 44 | X18: 40 | Y18: =ROUND(RAND()*(40-1)+1,0) -> 30 | Z18: =Y18+1 -> 31 | AA18: =X18 -> 40
D19: =L19 -> 10 | K19: =GCD(K18,M18) -> 9 | L19: =IF(K19=1,ROUND(RAND()*(10-3)+3,0),K19+1) -> 10 | M19: =M18*L19/K19 -> 70 | R19: =Z19 -> 11 | Y19: =GCD(Y18,AA18) -> 10 | Z19: =IF(Y19=1,ROUND(RAND()*(10-3)+3,0),Y19+1) -> 11 | AA19: =AA18*Z19/Y19 -> 44
B20: I | D20: =K21 -> 1 | E20: of | F20: =M21 -> 234 | J20: 39 | K20: =ROUND(RAND()*(48-1)+1,0) -> 4 | L20: =K20+1 -> 5 | M20: =J20 -> 39 | P20: V | R20: =Y21 -> 4 | S20: of | T20: =AA21 -> 55 | X20: 44 | Y20: =ROUND(RAND()*(44-1)+1,0) -> 32 | Z20: =Y20+1 -> 33 | AA20: =X20 -> 44
D21: =L21 -> 6 | K21: =GCD(K20,M20) -> 1 | L21: =IF(K21=1,ROUND(RAND()*(10-3)+3,0),K21+1) -> 6 | M21: =M20*L21/K21 -> 234 | R21: =Z21 -> 5 | Y21: =GCD(Y20,AA20) -> 4 | Z21: =IF(Y21=1,ROUND(RAND()*(10-3)+3,0),Y21+1) -> 5 | AA21: =AA20*Z21/Y21 -> 55
B22: J | D22: =K23 -> 2 | E22: of | F22: =M23 -> 57 | J22: 38 | K22: =ROUND(RAND()*(37-1)+1,0) -> 36 | L22: =K22+1 -> 37 | M22: =J22 -> 38 | P22: W | R22: =Y23 -> 1 | S22: of | T22: =AA23 -> 360 | X22: 60 | Y22: =ROUND(RAND()*(32-1)+1,0) -> 7 | Z22: =Y22+1 -> 8 | AA22: =X22 -> 60
D23: =L23 -> 3 | K23: =GCD(K22,M22) -> 2 | L23: =IF(K23=1,ROUND(RAND()*(10-3)+3,0),K23+1) -> 3 | M23: =M22*L23/K23 -> 57 | R23: =Z23 -> 6 | Y23: =GCD(Y22,AA22) -> 1 | Z23: =IF(Y23=1,ROUND(RAND()*(10-3)+3,0),Y23+1) -> 6 | AA23: =AA22*Z23/Y23 -> 360
B24: K | D24: =K25 -> 1 | E24: of | F24: =M25 -> 459 | J24: 51 | K24: =ROUND(RAND()*(49-1)+1,0) -> 16 | L24: =K24+1 -> 17 | M24: =J24 -> 51 | P24: X | R24: =Y25 -> 1 | S24: of | T24: =AA25 -> 296 | X24: 37 | Y24: =ROUND(RAND()*(59-1)+1,0) -> 29 | Z24: =Y24+1 -> 30 | AA24: =X24 -> 37
D25: =L25 -> 9 | K25: =GCD(K24,M24) -> 1 | L25: =IF(K25=1,ROUND(RAND()*(10-3)+3,0),K25+1) -> 9 | M25: =M24*L25/K25 -> 459 | R25: =Z25 -> 8 | Y25: =GCD(Y24,AA24) -> 1 | Z25: =IF(Y25=1,ROUND(RAND()*(10-3)+3,0),Y25+1) -> 8 | AA25: =AA24*Z25/Y25 -> 296
B26: L | D26: =K27 -> 1 | E26: of | F26: =M27 -> 245 | J26: 49 | K26: =ROUND(RAND()*(61-1)+1,0) -> 40 | L26: =K26+1 -> 41 | M26: =J26 -> 49 | P26: Y | R26: =Y27 -> 3 | S26: of | T26: =AA27 -> 64 | X26: 48 | Y26: =ROUND(RAND()*(65-1)+1,0) -> 63 | Z26: =Y26+1 -> 64 | AA26: =X26 -> 48
D27: =L27 -> 5 | K27: =GCD(K26,M26) -> 1 | L27: =IF(K27=1,ROUND(RAND()*(10-3)+3,0),K27+1) -> 5 | M27: =M26*L27/K27 -> 245 | R27: =Z27 -> 4 | Y27: =GCD(Y26,AA26) -> 3 | Z27: =IF(Y27=1,ROUND(RAND()*(10-3)+3,0),Y27+1) -> 4 | AA27: =AA26*Z27/Y27 -> 64
B28: M | D28: =K29 -> 6 | E28: of | F28: =M29 -> 49 | J28: 42 | K28: =ROUND(RAND()*(62-1)+1,0) -> 54 | L28: =K28+1 -> 55 | M28: =J28 -> 42 | P28: Z | R28: =Y29 -> 2 | S28: of | T28: =AA29 -> 93 | X28: 62 | Y28: =ROUND(RAND()*(65-1)+1,0) -> 64 | Z28: =Y28+1 -> 65 | AA28: =X28 -> 62
D29: =L29 -> 7 | K29: =GCD(K28,M28) -> 6 | L29: =IF(K29=1,ROUND(RAND()*(10-3)+3,0),K29+1) -> 7 | M29: =M28*L29/K29 -> 49 | R29: =Z29 -> 3 | Y29: =GCD(Y28,AA28) -> 2 | Z29: =IF(Y29=1,ROUND(RAND()*(10-3)+3,0),Y29+1) -> 3 | AA29: =AA28*Z29/Y29 -> 93

Sheet Info_Sheet
B2: Produced by mathsrevision.com in conjunction with St.Andrew’s OC (Glasgow)
B4: Name(s) - ________________________ Class _____ Date ______
B6: Orienteering challenges participants to navigate within an area with the aid of a specially drawn map. Our lesson to-day requires you to combine lots of mathematical & orienteering skills in a practical way.
B10: The Orienteering map of the school you have shows the location of 35 Controls. You need to find some of these sites. The Key explains the map symbols in use.
B13: The Triangle encased in the circle is where we Start & Finish each course. Orienteering is a quiet activity & there is no need to disturb any other classes. Nobody should cut through the school building or leave the school grounds. The Car Park should be treated as an “Out of Bounds” area.
B16: When we arrive at the Start a Control Card shall be issued to you. The large letter shown tells you which problem – see other side of this sheet – you need to solve & then go & find the Control with this Code. When you find the Control there will be a Code Letter on the marker, this gives you the next sum to be solved. There are 5 such tasks on each course.
C20: Code No. | D20: Description | E20: Code No. | F20: Description
C21: 31 | D21: Light | E21: 49 | F21: Fence Corner
C22: 32 | D22: Building / Drainpipe | E22: 50 | F22: Fence Corner
C23: 33 | D23: Corner of Building | E23: 51 | F23: High Fence End
C24: 34 | D24: Corner of Building | E24: 52 | F24: Floodlight
C25: 35 | D25: Light | E25: 53 | F25: Corner of Building
C26: 36 | D26: Light | E26: 54 | F26: At Seats / Drainpipe
C27: 37 | D27: High Fence End | E27: 55 | F27: Corner of Building
C28: 38 | D28: Fence Corner | E28: 56 | F28: Light
C29: 39 | D29: High Fence End | E29: 57 | F29: Corner of Building
C30: 40 | D30: Floodlight | E30: 58 | F30: Floodlight
C31: 41 | D31: High Fence End | E31: 59 | F31: Gate South Side
C32: 42 | D32: Corner of Building | E32: 60 | F32: Light
C33: 43 | D33: Fence Corner | E33: 61 | F33: Light
C34: 44 | D34: Corner of Building | E34: 62 | F34: Corner of Building
C35: 45 | D35: Corner of Building | E35: 63 | F35: Light
C36: 46 | D36: Corner of Building | E36: 64 | F36: Light
C37: 47 | D37: Light | E37: 65 | F37: Doorway West / Drainpipe
C38: 48 | D38: Fence Corner
B40: Kirkintilloch High
